bitfinex-derivatives/quotes_BTCF0:USTF0_20250901
["timestamp","ask_amount","ask_price","bid_price","bid_amount"]
[1756732652147,1.22914407,109170.0,109160.0,0.84315872]
[1756732652854,1.22914407,109170.0,109160.0,0.80975872]
[1756732653157,1.22914407,109170.0,109160.0,0.84415872]
[1756732653349,1.22914407,109170.0,109160.0,0.44895872]
[1756732653954,1.22914407,109170.0,109160.0,0.48335872]
[1756732654252,1.22914407,109170.0,109160.0,0.04724]
[1756732654459,1.22914407,109170.0,109160.0,0.04924]
[1756732654650,1.22922407,109170.0,109160.0,0.04924]
[1756732655255,1.23022407,109170.0,109160.0,0.04724]
[1756732655952,1.19625407,109170.0,109160.0,0.04634]
[1756732656353,0.35185407,109170.0,109160.0,0.04634]
[1756732656559,1.23133407,109170.0,109160.0,0.08014]
[1756732656752,1.23133407,109170.0,109160.0,0.04634]
[1756732657152,1.23133407,109170.0,109160.0,0.08014]
[1756732657551,0.08242,109170.0,109160.0,0.08014]
[1756732657859,0.89182,109170.0,109160.0,1.36541407]
[1756732658362,0.92686,109170.0,109160.0,1.36541407]
[1756732658554,0.04738,109170.0,109160.0,1.36541407]
[1756732658760,0.64936,109170.0,109160.0,1.36541407]
[1756732659759,0.6844,109170.0,109160.0,1.36541407]
[1756732660151,0.64936,109170.0,109160.0,1.36541407]
[1756732660655,0.84648,109170.0,109160.0,1.1525427]
[1756732660862,0.002,109170.0,109160.0,1.45701677]
[1756732661354,0.002,109170.0,109160.0,1.36541407]
[1756732661551,0.03704,109170.0,109160.0,1.36541407]
[1756732661747,0.03704,109170.0,109160.0,0.69094]
[1756732661949,0.08515,109170.0,109160.0,1.01094]
[1756732662551,0.38962407,109170.0,109160.0,0.44094]
[1756732663355,0.38962407,109170.0,109160.0,0.38357]
[1756732663662,0.08315,109160.0,109150.0,0.04296765]
[1756732663961,1.23230407,109160.0,109150.0,0.06653765]
[1756732664355,0.92783,109160.0,109150.0,0.06653765]
[1756732664555,1.23230407,109160.0,109150.0,0.04296765]
[1756732664760,1.23230407,109160.0,109150.0,0.06653765]
[1756732665067,0.89287,109160.0,109150.0,1.10016172]
[1756732665755,1.23238407,109160.0,109150.0,0.46113765]
[1756732666164,0.92791,109160.0,109150.0,0.46113765]
[1756732666964,0.08315,109160.0,109150.0,0.46113765]
[1756732667165,0.78055,109160.0,109150.0,0.47568765]
[1756732667365,0.78055,109160.0,109150.0,0.84568765]
[1756732667964,0.81559,109160.0,109150.0,0.46113765]
[1756732668159,0.81559,109160.0,109150.0,0.53478301]
[1756732669268,0.08315,109160.0,109150.0,0.53478301]
[1756732669468,0.92851,109160.0,109150.0,0.53478301]
[1756732669669,0.92847,109160.0,109150.0,0.53478301]
[1756732670369,0.08315,109160.0,109150.0,0.53478301]
[1756732670571,0.48123,109160.0,109150.0,1.16925708]
[1756732670765,0.44619,109160.0,109150.0,1.16925708]
[1756732671070,0.44619,109160.0,109150.0,1.18380708]
[1756732671270,0.04811,109160.0,109150.0,1.18380708]
[1756732671471,0.78075,109160.0,109150.0,0.87933301]
[1756732671670,0.89339,109160.0,109150.0,1.18380708]
[1756732672062,0.92843,109160.0,109150.0,1.18380708]
[1756732672261,0.92843,109160.0,109150.0,0.87933301]
[1756732672563,0.08315,109170.0,109160.0,0.08014]
[1756732672765,0.89327,109170.0,109160.0,1.06541407]
[1756732672971,0.86933,109170.0,109160.0,1.06541407]
[1756732673166,0.90437,109170.0,109160.0,1.06541407]
[1756732673874,0.08415,109170.0,109160.0,1.06541407]
[1756732674068,0.92931,109170.0,109160.0,1.06541407]
[1756732674268,0.92931,109170.0,109160.0,0.74541407]
[1756732674470,0.92931,109170.0,109160.0,0.82094]
[1756732675068,0.93031,109170.0,109160.0,0.82094]
[1756732676878,0.89527,109170.0,109160.0,0.82094]
[1756732677070,0.002,109170.0,109160.0,1.46701677]
[1756732677270,0.002,109170.0,109160.0,1.5324627]
[1756732678174,0.87988,109190.0,109170.0,0.0915915]
[1756732678376,0.93799,109190.0,109180.0,0.44094]
[1756732678578,0.92819,109190.0,109180.0,1.10541407]
[1756732678769,0.02417,109190.0,109180.0,1.10541407]
[1756732679172,0.02417,109190.0,109180.0,1.19699997]
[1756732679372,0.92819,109200.0,109190.0,0.0338]
[1756732679673,0.10315,109200.0,109190.0,0.74541407]
[1756732679878,0.92815,109200.0,109190.0,0.74541407]
[1756732680175,0.92815,109200.0,109190.0,0.76217158]
[1756732680371,2.27423407,109210.0,109190.0,1.20381022]
[1756732680577,2.86271,109210.0,109200.0,0.44094]
[1756732680771,0.92799,109210.0,109200.0,0.44094]
[1756732680973,0.92799,109210.0,109200.0,0.74541407]
[1756732681373,0.92799,109210.0,109200.0,0.44094]
[1756732682081,1.23246407,109210.0,109200.0,0.44094]
[1756732683678,1.23746407,109210.0,109200.0,0.44094]
[1756732684080,0.93299,109210.0,109200.0,0.44094]
[1756732684375,1.23746407,109210.0,109200.0,0.44094]
[1756732684782,0.93299,109210.0,109200.0,0.44094]
[1756732685680,0.005,109210.0,109200.0,1.21115317]
[1756732685880,0.005,109210.0,109200.0,2.61054724]
[1756732686182,0.005,109210.0,109200.0,2.30607317]
[1756732686384,0.004,109210.0,109200.0,2.21450407]
[1756732686978,0.001,109210.0,109200.0,2.21450407]
[1756732687177,0.002,109210.0,109200.0,2.21450407]
[1756732687481,0.002,109210.0,109200.0,1.36958407]
[1756732687780,0.001,109210.0,109200.0,1.46115317]
[1756732688276,0.001,109210.0,109200.0,1.76562724]
[1756732688882,0.0378,109210.0,109200.0,2.20065407]
[1756732689571,0.001,109210.0,109200.0,2.21486407]
[1756732689776,0.0378,109210.0,109200.0,2.20069407]
[1756732689976,0.001,109210.0,109200.0,2.20069407]
[1756732690681,0.38947407,109210.0,109200.0,0.44094]
[1756732691582,0.085,109210.0,109200.0,0.44094]
[1756732691878,0.001,109210.0,109200.0,0.8966791]
[1756732692084,2.31028,109250.0,109230.0,0.04829]
[1756732692085,0.74664,109240.0,109230.0,0.04829]
[1756732692283,1.40111407,109240.0,109230.0,0.04829]
[1756732692581,0.73847407,109240.0,109230.0,0.04829]
[1756732692881,1.58387407,109240.0,109230.0,0.44505]
[1756732693381,1.2844,109240.0,109230.0,0.51658362]
[1756732693784,1.28424,109240.0,109230.0,0.51658362]
[1756732693983,1.28724,109240.0,109230.0,0.51658362]
[1756732694184,1.28524,109240.0,109230.0,0.51658362]
[1756732694672,0.09,109240.0,109230.0,0.51658362]
[1756732694875,0.089,109240.0,109230.0,1.17105769]
[1756732695074,0.0522,109240.0,109230.0,1.26260159]
[1756732695275,0.02844,109240.0,109230.0,1.26260159]
[1756732695771,0.02844,109240.0,109230.0,0.86658362]
[1756732695973,0.02844,109240.0,109230.0,1.17105769]
[1756732696684,0.005,109240.0,109230.0,1.26260159]
[1756732697484,0.089,109240.0,109230.0,1.19105769]
[1756732697685,0.089,109240.0,109230.0,1.28260159]
[1756732697686,0.0522,109240.0,109230.0,1.28260159]
[1756732698083,0.005,109240.0,109230.0,1.28260159]
[1756732699488,0.005,109240.0,109230.0,0.62812752]
[1756732699785,0.02844,109240.0,109230.0,1.15105769]
[1756732700294,0.005,109240.0,109230.0,1.24260169]
[1756732701194,0.005,109240.0,109230.0,1.49260169]
[1756732701498,0.005,109240.0,109230.0,1.79707576]
[1756732701998,0.005,109240.0,109230.0,1.49260169]
[1756732702891,0.005,109240.0,109230.0,1.79707576]
[1756732703496,0.005,109240.0,109230.0,2.33684169]
[1756732704498,0.084,109250.0,109240.0,0.08425]
[1756732704700,0.084,109250.0,109240.0,1.12025556]
[1756732704997,0.38847407,109250.0,109240.0,0.46578149]
[1756732705396,0.63847407,109250.0,109240.0,0.04829]
[1756732705898,0.63847407,109250.0,109240.0,0.08425]
[1756732705899,0.63947407,109250.0,109240.0,0.08425]
[1756732706300,1.48367407,109250.0,109240.0,0.08425]
[1756732706502,1.1792,109250.0,109240.0,0.08425]
[1756732706806,1.48367407,109250.0,109240.0,0.08425]
[1756732707002,1.49758407,109250.0,109240.0,0.02368]
[1756732707300,0.084,109240.0,109230.0,0.82105769]
[1756732707496,0.084,109240.0,109230.0,0.51658362]
[1756732708302,0.0418,109250.0,109230.0,1.23664159]
[1756732708498,0.0532,109250.0,109240.0,0.74952407]
[1756732708693,0.0532,109250.0,109240.0,1.10952407]
[1756732709001,0.003,109250.0,109240.0,1.10952407]
[1756732709299,0.003,109250.0,109240.0,1.0862098]
[1756732709800,0.003,109250.0,109240.0,1.9303698]
[1756732710300,0.003,109250.0,109240.0,2.29258457]
[1756732710499,0.0368,109270.0,109260.0,0.03596]
[1756732710698,0.084,109270.0,109260.0,0.74952407]
[1756732710893,0.0368,109280.0,109260.0,1.21104287]
[1756732711095,0.02344,109280.0,109270.0,0.74952407]
[1756732711291,0.88092,109290.0,109270.0,0.74952407]
[1756732711292,0.88092,109290.0,109270.0,1.09952407]
[1756732711602,0.94886022,109290.0,109280.0,0.08425]
[1756732711900,0.92832,109290.0,109280.0,0.08425]
[1756732713103,1.23279407,109290.0,109280.0,0.44505]
[1756732713294,0.03044,109290.0,109280.0,1.06952407]
[1756732713690,0.007,109290.0,109280.0,2.25510617]
[1756732713891,0.0368,109310.0,109280.0,2.21914617]
[1756732714095,0.084,109310.0,109300.0,0.44505]
[1756732714295,0.084,109310.0,109300.0,0.46125284]
[1756732714998,0.084,109310.0,109300.0,0.44505]
[1756732715407,0.085,109310.0,109300.0,0.44505]
[1756732715606,0.086,109310.0,109300.0,0.44505]
[1756732716006,0.02544,109310.0,109300.0,0.44505]
[1756732716200,0.02544,109310.0,109300.0,0.82487604]
[1756732716500,0.04821,109310.0,109300.0,0.89924005]
[1756732716705,0.08273,109310.0,109300.0,0.51941401]
[1756732717401,0.08473,109310.0,109300.0,0.51941401]
[1756732718302,0.004,109310.0,109300.0,0.91372005]
[1756732718701,0.004,109310.0,109300.0,1.00520545]
[1756732718907,0.004,109310.0,109300.0,2.09760005]
[1756732719103,0.004,109310.0,109300.0,1.25372005]
[1756732719302,0.004,109310.0,109300.0,1.34520545]
[1756732719603,0.004,109310.0,109300.0,1.59520545]
[1756732720003,0.004,109310.0,109300.0,1.50372005]
[1756732720399,0.004,109310.0,109300.0,2.79984545]
[1756732721308,0.74062604,109340.0,109330.0,0.04979]
[1756732721309,0.44107,109340.0,109330.0,0.04979]
[1756732721505,0.04575,109340.0,109330.0,0.44791]
[1756732721809,0.08027,109340.0,109330.0,0.44791]
[1756732722898,0.08127,109340.0,109330.0,0.52791]
[1756732723103,0.001,109340.0,109330.0,0.90773604]
[1756732723499,0.04675,109340.0,109330.0,0.52791]
[1756732724100,0.08627,109340.0,109330.0,0.08711]
[1756732724321,0.006,109340.0,109330.0,0.08711]
[1756732724511,0.08627,109340.0,109330.0,0.44791]
[1756732724807,0.006,109340.0,109330.0,0.44791]
[1756732725008,0.004,109340.0,109330.0,0.44791]
[1756732725214,0.02698,109340.0,109330.0,0.44791]
[1756732725414,0.04975,109340.0,109330.0,0.44791]
[1756732726208,0.004,109340.0,109330.0,0.82773604]
[1756732726517,0.004,109340.0,109330.0,1.18773604]
[1756732727015,0.004,109340.0,109330.0,1.09773604]
[1756732727315,0.004,109340.0,109330.0,1.47919664]
[1756732727511,0.004,109340.0,109330.0,1.38773604]
[1756732727816,0.001,109340.0,109330.0,1.47919664]
[1756732728017,0.004,109340.0,109330.0,1.47919664]
[1756732728218,0.16695,109370.0,109360.0,0.04979]
[1756732728415,0.74062604,109380.0,109360.0,0.08711]
[1756732728416,0.39532,109380.0,109360.0,0.08711]
[1756732728711,2.32884,109390.0,109370.0,0.82773604]
[1756732728918,2.32884,109390.0,109380.0,0.08711]
[1756732728919,2.35161,109390.0,109380.0,0.08711]
[1756732729113,2.01379,109390.0,109380.0,0.08711]
[1756732729306,0.44107,109390.0,109380.0,0.04979]
[1756732729809,0.77107,109390.0,109380.0,0.04979]
[1756732730210,0.44107,109390.0,109380.0,0.04979]
[1756732730415,0.08027,109390.0,109380.0,0.08711]
[1756732730612,0.46009604,109390.0,109380.0,0.08711]
[1756732731114,0.81309604,109390.0,109380.0,0.08711]
[1756732731311,1.02857604,109390.0,109370.0,0.42824536]
[1756732731507,0.46009604,109380.0,109370.0,0.47803536]
[1756732731707,0.92375,109380.0,109370.0,0.47803536]
[1756732732116,0.08027,109380.0,109370.0,0.47803536]
[1756732734115,1.07089604,109380.0,109370.0,0.08911]
[1756732734324,0.71009604,109380.0,109370.0,0.08911]
[1756732734520,0.29575,109380.0,109370.0,0.08911]
[1756732734714,0.08227,109390.0,109380.0,0.08711]
[1756732734917,0.08027,109390.0,109380.0,0.08711]
[1756732736821,0.08027,109390.0,109380.0,0.08811]
[1756732738417,0.08027,109390.0,109380.0,0.44891]
[1756732738619,0.88935,109390.0,109380.0,0.44891]
[1756732739121,0.92387,109390.0,109380.0,0.44891]
[1756732742930,0.08027,109390.0,109380.0,0.44891]
[1756732745625,0.92339,109390.0,109380.0,0.44891]
[1756732745932,0.92339,109390.0,109380.0,0.05079]
[1756732746427,0.92339,109390.0,109380.0,0.08553]
[1756732747528,0.92339,109390.0,109380.0,0.08453]
[1756732748030,1.22685774,109390.0,109380.0,0.08453]
[1756732748729,0.92339,109390.0,109380.0,0.08453]
[1756732748930,1.22685774,109390.0,109380.0,0.08453]
[1756732749129,1.22685774,109390.0,109380.0,0.04979]
[1756732749731,1.22685774,109390.0,109380.0,0.08453]
[1756732750233,0.08107,109380.0,109370.0,0.13289651]
[1756732751635,0.08107,109380.0,109370.0,0.43736425]
[1756732752434,0.08107,109380.0,109370.0,0.79816425]
[1756732752626,0.08107,109380.0,109370.0,0.49469651]
[1756732753733,0.73453774,109380.0,109370.0,0.43655651]
[1756732753942,1.66955674,109380.0,109370.0,0.02126057]
[1756732754335,1.366089,109380.0,109370.0,0.02126057]
[1756732755041,1.66955674,109380.0,109370.0,0.001]
[1756732755243,0.08107,109370.0,109360.0,0.07300659]
[1756732755439,0.91052428,109370.0,109350.0,0.42507219]
[1756732755742,0.08107,109360.0,109350.0,0.47290219]
[1756732755941,0.38453774,109360.0,109350.0,0.47290219]
[1756732756539,0.08107,109360.0,109350.0,0.47290219]
[1756732756735,0.92419,109360.0,109350.0,0.47290219]
[1756732756936,0.92415,109360.0,109350.0,0.47290219]
[1756732758231,0.92415,109360.0,109350.0,0.47390219]
[1756732759150,1.22761774,109360.0,109350.0,0.47390219]
[1756732759348,0.08107,109360.0,109350.0,0.47390219]
[1756732759640,0.92419,109360.0,109350.0,0.47390219]
[1756732760542,1.22765774,109360.0,109350.0,0.47390219]
[1756732762639,1.22765774,109360.0,109350.0,0.41576219]
[1756732762940,1.60924211,109360.0,109350.0,0.03053219]
[1756732763540,1.30577437,109360.0,109350.0,0.05496219]
[1756732763842,1.60920211,109360.0,109350.0,0.11310219]
[1756732764444,1.58841774,109360.0,109350.0,0.11310219]
[1756732764744,1.58841774,109360.0,109350.0,0.07836219]
[1756732764945,1.58841774,109360.0,109350.0,0.11310219]
[1756732765446,1.28495,109360.0,109350.0,0.11310219]
[1756732765739,1.58841774,109360.0,109350.0,0.11310219]
[1756732765943,1.58841774,109360.0,109350.0,0.03053219]
[1756732768446,1.28495,109360.0,109350.0,0.03053219]
[1756732768650,1.58941774,109360.0,109350.0,0.03053219]
[1756732768948,1.58941774,109360.0,109350.0,0.02953219]
[1756732769144,1.58941774,109360.0,109340.0,0.41551386]
[1756732769348,0.08107,109350.0,109340.0,0.46334386]
[1756732769850,0.39857774,109350.0,109340.0,0.06780386]
[1756732770052,0.39857774,109350.0,109340.0,0.01997386]
[1756732770351,0.39857774,109350.0,109340.0,0.04440386]
[1756732770547,0.09511,109350.0,109340.0,0.06780386]
[1756732770745,0.92419,109350.0,109340.0,0.13276661]
[1756732770953,1.22765774,109350.0,109340.0,0.13276661]
[1756732771855,1.22765774,109350.0,109340.0,0.13376661]
[1756732772945,1.59169774,109350.0,109340.0,0.05119661]
[1756732773246,0.0344,109340.0,109320.0,0.3608]
[1756732773451,0.0344,109340.0,109320.0,0.38523]
[1756732773452,1.22769774,109330.0,109320.0,0.38523]
[1756732773652,1.22769774,109330.0,109320.0,0.40863]
[1756732773847,1.22769774,109330.0,109310.0,0.48131112]
[1756732774049,1.22769774,109330.0,109310.0,0.40555519]
[1756732774050,0.38453774,109320.0,109310.0,0.40555519]
[1756732774251,0.38453774,109320.0,109310.0,0.46369519]
[1756732774651,1.22769774,109320.0,109310.0,0.46369519]
[1756732775257,0.92423,109320.0,109310.0,0.46369519]
[1756732775754,0.08107,109320.0,109310.0,0.46369519]
[1756732775954,0.92427,109320.0,109310.0,0.46369519]
[1756732776158,0.08107,109320.0,109310.0,0.46669519]
[1756732776753,0.08107,109320.0,109310.0,0.44837]
[1756732777951,1.23901,109330.0,109320.0,0.03422]
[1756732778154,1.59189774,109330.0,109320.0,0.08178]
[1756732778351,0.08439,109370.0,109330.0,0.0914606]
[1756732778650,0.27633,109380.0,109360.0,1.02506774]
[1756732778854,0.32575,109380.0,109370.0,0.66426774]
[1756732779051,0.32575,109380.0,109370.0,0.73426774]
[1756732779253,0.08439,109380.0,109370.0,0.73426774]
[1756732779545,0.92827,109380.0,109370.0,0.3608]
[1756732779955,0.08439,109370.0,109360.0,0.3608]
[1756732780156,1.30775481,109370.0,109360.0,0.07456459]
[1756732780355,0.92831,109370.0,109350.0,0.3608]
[1756732780551,0.08439,109360.0,109350.0,0.3608]
[1756732781260,0.92839,109360.0,109350.0,0.3608]
[1756732781453,0.04942,109360.0,109350.0,0.74024481]
[1756732781658,0.92835,109370.0,109350.0,0.74024481]
[1756732781853,0.92827,109370.0,109350.0,1.09024481]
[1756732782055,0.92827,109370.0,109350.0,0.74024481]
[1756732782559,0.08439,109360.0,109350.0,0.74024481]
[1756732782756,0.08439,109360.0,109350.0,0.74224481]
[1756732783650,0.02497,109360.0,109350.0,0.74224481]
[1756732784262,0.08539,109360.0,109350.0,0.74224481]
[1756732786165,0.08539,109360.0,109350.0,0.3628]
[1756732786464,0.08539,109360.0,109350.0,0.74224481]
[1756732789160,0.001,109360.0,109350.0,0.3628]
[1756732789360,0.03497,109390.0,109360.0,0.0914314]
[1756732789561,0.02497,109390.0,109380.0,1.10104481]
[1756732791468,0.05994,109390.0,109380.0,1.10104481]
[1756732791660,0.05994,109390.0,109380.0,0.7216]
[1756732791856,0.08439,109390.0,109380.0,0.79343775]
[1756732792666,0.08439,109390.0,109380.0,0.81418287]
[1756732792865,0.08439,109390.0,109380.0,1.19362768]
[1756732793061,0.08439,109390.0,109380.0,0.81418287]
[1756732793369,0.33439,109390.0,109380.0,0.45438287]
[1756732793570,0.71383481,109390.0,109380.0,0.09358287]
[1756732793765,0.71383481,109390.0,109380.0,0.07283775]
[1756732793766,1.07463481,109390.0,109380.0,0.07283775]
[1756732794169,0.04942,109370.0,109360.0,0.38518382]
[1756732794372,0.92823,109370.0,109360.0,0.38518382]
[1756732795567,0.92823,109370.0,109360.0,0.76462863]
[1756732796270,0.04942,109370.0,109360.0,1.09462863]
[1756732796576,0.08439,109390.0,109380.0,0.00422]
[1756732796762,0.92783,109390.0,109380.0,0.36502]
[1756732796962,0.92779,109390.0,109380.0,0.36502]
[1756732797172,0.92779,109390.0,109380.0,0.74446481]
[1756732797475,0.93079,109390.0,109380.0,0.36502]
[1756732797975,0.08439,109390.0,109380.0,0.36502]
[1756732798166,0.92879,109390.0,109380.0,0.74446481]
[1756732799269,0.08539,109390.0,109380.0,0.36502]
[1756732799474,0.92883,109390.0,109380.0,0.36502]
[1756732800176,0.08539,109390.0,109380.0,0.36502]
[1756732800378,0.92875,109390.0,109380.0,0.36502]
[1756732800877,0.08539,109390.0,109380.0,0.36502]
[1756732801073,0.92887,109390.0,109380.0,0.36502]
[1756732801475,0.89382,109390.0,109380.0,0.74446481]
[1756732801672,0.92879,109390.0,109380.0,0.36502]
[1756732802077,0.92879,109390.0,109380.0,0.72582]
[1756732802377,0.92879,109390.0,109380.0,1.10526481]
[1756732803077,0.001,109390.0,109380.0,1.73526481]
[1756732803969,0.001,109390.0,109380.0,1.82668431]
[1756732805376,0.001,109390.0,109380.0,1.84716842]
[1756732806278,0.001,109390.0,109380.0,1.91261435]
[1756732806477,0.82765,109410.0,109380.0,1.91261435]
[1756732806680,0.87438,109410.0,109400.0,0.74024481]
[1756732806979,0.92602,109410.0,109400.0,0.74024481]
[1756732807879,0.92702,109410.0,109400.0,0.76525665]
[1756732808579,0.92802,109410.0,109400.0,0.76525665]
[1756732808775,0.0837,109410.0,109400.0,0.76525665]
[1756732809080,0.92794,109410.0,109400.0,0.76525665]
[1756732809383,0.0837,109410.0,109400.0,1.07525665]
[1756732809680,0.0837,109410.0,109400.0,0.78525665]
[1756732810080,0.0837,109410.0,109400.0,0.76525665]
[1756732810482,0.0827,109410.0,109400.0,0.76525665]
[1756732810681,0.0847,109410.0,109400.0,0.76525665]
[1756732811977,0.02556,109410.0,109400.0,1.51622008]
[1756732812173,0.01391,109450.0,109400.0,1.88711727]
[1756732812372,0.09568,109450.0,109440.0,0.74024481]
[1756732812572,0.09568,109450.0,109440.0,0.3608]
[1756732812780,0.08177,109440.0,109430.0,0.3608]
[1756732812984,0.92549,109440.0,109430.0,0.3608]
[1756732813483,1.55493481,109440.0,109430.0,0.3608]
[1756732813883,0.71121481,109440.0,109430.0,0.3608]
[1756732814072,1.17533,109440.0,109430.0,0.3608]
[1756732814674,1.17525,109440.0,109430.0,0.3608]
[1756732815083,1.17525,109440.0,109430.0,0.43457128]
[1756732815786,1.17525,109440.0,109430.0,0.43657128]
[1756732816186,0.33177,109440.0,109430.0,0.43657128]
[1756732816387,0.08177,109440.0,109430.0,0.43657128]
[1756732816588,0.08177,109440.0,109430.0,0.81601609]
[1756732816988,0.04673,109440.0,109430.0,0.81601609]
[1756732817584,0.04673,109440.0,109430.0,1.06601609]
[1756732817585,0.02256,109440.0,109430.0,1.06601609]
[1756732817881,0.04895,109450.0,109430.0,1.49739379]
[1756732818082,0.08177,109460.0,109440.0,0.76095164]
[1756732818287,0.74217,109460.0,109450.0,0.3608]
[1756732818677,0.08177,109470.0,109450.0,0.3608]
[1756732818880,0.08177,109470.0,109460.0,0.74024481]
[1756732819185,0.08177,109470.0,109460.0,0.3608]
[1756732819382,0.08177,109470.0,109460.0,0.74024481]
[1756732820190,0.08177,109470.0,109460.0,0.3608]
[1756732820587,0.92529,109470.0,109460.0,0.3608]
[1756732820783,0.92529,109470.0,109460.0,0.38602132]
[1756732820994,0.08177,109460.0,109450.0,0.3608]
[1756732821692,0.08177,109460.0,109440.0,0.76095164]
[1756732821693,0.09536,109450.0,109440.0,0.38150683]
[1756732821892,0.09536,109450.0,109440.0,0.40677675]
[1756732822392,0.04673,109450.0,109440.0,0.78622156]
[1756732822592,0.87868,109460.0,109440.0,0.78622156]
[1756732822593,0.08177,109470.0,109450.0,0.001]
[1756732822892,0.08177,109460.0,109450.0,0.74124481]
[1756732823090,0.04673,109460.0,109450.0,0.74124481]
[1756732823294,0.02256,109460.0,109450.0,0.74124481]
[1756732823490,0.08177,109470.0,109450.0,0.74124481]
[1756732823790,0.08177,109470.0,109460.0,0.3608]
[1756732824693,0.04673,109470.0,109450.0,0.74024481]
[1756732824891,0.04673,109470.0,109450.0,0.81024481]
[1756732825394,0.08177,109460.0,109450.0,0.3608]
[1756732825996,1.30585481,109460.0,109450.0,0.3618]
[1756732826589,0.92641,109460.0,109450.0,0.3618]
[1756732826787,0.92641,109460.0,109450.0,0.001]
[1756732826788,1.30585481,109460.0,109450.0,0.001]
[1756732827394,1.91665481,109460.0,109450.0,0.001]
[1756732827595,0.01359,109450.0,109430.0,0.43457128]
[1756732827899,1.30541481,109440.0,109430.0,0.43457128]
[1756732828795,1.21887,109450.0,109440.0,0.001]
[1756732829098,1.21887,109450.0,109440.0,0.36502]
[1756732829099,0.93984,109450.0,109440.0,0.36502]
[1756732829297,0.8804,109460.0,109440.0,0.74446481]
[1756732829497,0.92813,109460.0,109450.0,0.00422]
[1756732829697,0.89325,109460.0,109450.0,0.36502]
[1756732830001,0.002,109460.0,109450.0,0.74446481]
[1756732830196,0.03504,109470.0,109460.0,0.001]
[1756732830394,0.92641,109470.0,109460.0,0.36502]
[1756732830589,0.92641,109470.0,109460.0,0.74446481]
[1756732830795,0.92641,109470.0,109460.0,0.36502]
[1756732831999,0.08177,109470.0,109460.0,0.36502]
[1756732832204,0.92641,109470.0,109460.0,0.36502]
[1756732833006,0.92741,109470.0,109460.0,0.00422]
[1756732833308,0.92741,109470.0,109460.0,0.00261]
[1756732833607,0.92841,109470.0,109460.0,0.00261]
[1756732833794,0.89337,109470.0,109460.0,0.3608]
[1756732833998,0.89337,109470.0,109460.0,0.36502]
[1756732834506,0.92841,109470.0,109460.0,0.36502]
[1756732834903,0.92841,109470.0,109460.0,0.00161]
[1756732835107,0.89337,109470.0,109460.0,0.3608]
[1756732835809,0.9283,109470.0,109460.0,0.36341]
[1756732836008,0.9283,109470.0,109460.0,0.36502]
[1756732836404,0.9283,109470.0,109460.0,0.99446481]
[1756732836405,0.002,109470.0,109460.0,0.99446481]
[1756732837605,0.002,109470.0,109460.0,1.35446481]
[1756732837800,0.002,109470.0,109460.0,1.01446481]
[1756732837997,0.001,109470.0,109460.0,1.01446481]
[1756732838206,0.001,109470.0,109460.0,1.01746481]
[1756732839012,0.0819,109480.0,109470.0,0.00422]
[1756732839309,0.0819,109480.0,109470.0,0.36502]
[1756732840806,0.0819,109480.0,109470.0,0.36702]
[1756732841312,0.10234309,109480.0,109470.0,0.36702]
[1756732842110,0.10234309,109480.0,109470.0,0.36802]
[1756732844112,0.10234309,109480.0,109470.0,0.74746481]
[1756732844308,0.03493,109490.0,109470.0,1.09746481]
[1756732844511,0.10235786,109490.0,109480.0,0.38366481]
[1756732844709,0.10235786,109490.0,109480.0,0.00422]
[1756732845208,0.41021243,109520.0,109480.0,2.17817859]
[1756732845409,0.46134481,109510.0,109490.0,0.3608]
[1756732845609,0.09574,109500.0,109490.0,0.43311992]
[1756732845809,0.09574,109500.0,109490.0,0.43211992]
[1756732846005,0.09574,109500.0,109490.0,0.43472992]
[1756732846209,0.09574,109500.0,109490.0,0.43633992]
[1756732846614,0.09574,109500.0,109490.0,0.81578473]
[1756732847114,0.09574,109500.0,109490.0,0.43633992]
[1756732847816,0.09674,109500.0,109490.0,0.43633992]
[1756732848516,0.09674,109500.0,109490.0,0.45883655]
[1756732850412,0.09574,109500.0,109490.0,0.45883655]
[1756732851516,0.09574,109500.0,109490.0,0.83928136]
[1756732851715,0.09574,109500.0,109490.0,0.46183655]
[1756732851916,0.09574,109500.0,109490.0,0.84128136]
[1756732852215,0.09574,109500.0,109490.0,0.46183655]
[1756732853120,0.09574,109500.0,109490.0,0.09681655]
[1756732853121,0.72518481,109500.0,109490.0,0.09681655]
[1756732853317,1.1064046,109500.0,109490.0,0.09681655]
[1756732853820,1.29998,109500.0,109490.0,0.09842655]
[1756732854020,1.67942481,109500.0,109490.0,0.09842655]
[1756732854220,1.31862481,109500.0,109490.0,0.09942655]
[1756732854624,1.31962481,109500.0,109490.0,0.09742655]
[1756732854814,0.94018,109500.0,109490.0,0.09742655]
[1756732855014,0.94118,109500.0,109490.0,0.09542655]
[1756732855319,0.94118,109500.0,109490.0,0.45622655]
[1756732855616,0.94118,109500.0,109490.0,0.09542655]
[1756732856019,0.94118,109500.0,109490.0,0.09381655]
[1756732856313,0.03493,109490.0,109480.0,0.38533378]
[1756732856519,0.0819,109490.0,109480.0,0.38533378]
[1756732856914,0.0819,109490.0,109480.0,0.40744474]
[1756732860522,0.0819,109480.0,109470.0,0.3608]
[1756732860828,0.0819,109480.0,109470.0,0.74446481]
[1756732861026,0.55386,109490.0,109480.0,0.00422]
[1756732861326,0.89077,109490.0,109480.0,0.76662033]
[1756732861626,0.9257,109490.0,109480.0,0.36502]
[1756732863229,0.9257,109490.0,109480.0,0.3872892]
[1756732864531,0.9257,109490.0,109480.0,0.3862892]
[1756732864732,1.30514481,109490.0,109480.0,0.3862892]
[1756732865031,1.30514481,109490.0,109480.0,0.3872892]
[1756732865832,0.0819,109490.0,109480.0,0.3872892]
[1756732866134,0.89105,109490.0,109480.0,0.3872892]
[1756732866328,0.92546,109490.0,109480.0,0.3872892]
[1756732866530,0.08138,109490.0,109480.0,0.3872892]
[1756732866729,0.92782,109490.0,109480.0,0.3872892]
[1756732867230,0.08138,109490.0,109480.0,0.7372892]
[1756732867432,0.08138,109490.0,109480.0,0.3872892]
[1756732868629,0.02268,109490.0,109480.0,0.3872892]